bitfinex/quotes_SOLUSD_20250204
["timestamp","ask_amount","ask_price","bid_price","bid_amount"]
[1738628281341,4.6146,216.7,216.58,0.063]
[1738628281537,4.6146,216.7,216.59,7.6735]
[1738628281840,20.0,216.68,216.59,7.6735]
[1738628282155,13.41184853,216.68,216.59,7.6735]
[1738628282339,4.6153,216.67,216.59,7.6735]
[1738628282854,40.2748845,216.72,216.59,12.2904]
[1738628283051,4.6771,216.73,216.59,12.2904]
[1738628283237,36.5148845,216.72,216.59,12.2904]
[1738628283632,13.41184853,216.71,216.59,12.2904]
[1738628284033,18.02644853,216.71,216.59,12.2904]
[1738628284352,20.0,216.71,216.59,12.2904]
[1738628284733,36.5148845,216.7,216.59,12.2904]
[1738628285146,0.063,216.73,216.62,20.0]
[1738628286247,0.063,216.73,216.63,24.6161]
[1738628286762,0.063,216.73,216.63,4.6161]
[1738628286933,0.063,216.73,216.61,4.6164]
[1738628287137,36.5148845,216.7,216.61,4.6164]
[1738628287337,36.5148845,216.68,216.59,12.2903]
[1738628288147,20.0,216.65,216.59,7.6735]
[1738628288457,20.0,216.65,216.59,1.5565]
[1738628288657,4.6153,216.67,216.58,0.063]
[1738628288658,36.5148845,216.64,216.58,0.063]
[1738628289050,4.6153,216.67,216.59,4.617]
[1738628289763,36.5148845,216.68,216.59,4.617]
[1738628289966,3.76,216.69,216.59,4.617]
[1738628290149,3.76,216.69,216.58,0.063]
[1738628290464,0.063,216.73,216.59,13.41184853]
[1738628290644,20.0,216.71,216.59,13.41184853]
[1738628291162,36.5148845,216.7,216.58,0.063]
[1738628291366,36.5148845,216.68,216.58,0.063]
[1738628291855,36.5148845,216.72,216.58,0.063]
[1738628292262,20.0,216.69,216.58,13.47484853]
[1738628292475,20.0,216.69,216.58,0.063]
[1738628292766,36.5148845,216.68,216.59,0.03]
[1738628293064,20.0,216.61,216.59,0.03]
[1738628293247,69.92673303,216.6,216.58,0.063]
[1738628293451,20.0,216.56,216.55,0.03]
[1738628293658,69.92673303,216.56,216.55,0.03]
[1738628294346,74.54433303,216.56,216.55,0.03]
[1738628294756,56.5148845,216.56,216.55,0.03]
[1738628294945,20.0,216.56,216.55,0.03]
[1738628296164,3.76,216.6,216.55,0.03]
[1738628297068,4.617,216.59,216.55,0.03]
[1738628297254,20.0,216.56,216.55,0.03]
[1738628297658,56.5148845,216.56,216.55,0.03]
[1738628298441,74.54433303,216.56,216.55,0.03]
[1738628299371,74.54433303,216.56,216.55,0.0001]
[1738628300365,20.0,216.52,216.51,0.0001]
[1738628300569,74.54523303,216.52,216.51,0.0001]
[1738628300874,60.54464128,216.52,216.51,0.0001]
[1738628301867,22.51429275,216.54,216.51,0.0001]
[1738628302050,55.6783,216.62,216.51,0.0001]
[1738628302051,4.6174,216.57,216.51,0.0001]
[1738628302246,22.51429275,216.62,216.51,1.5833]
[1738628302471,27.12979275,216.66,216.51,1.5833]
[1738628302672,13.41184853,216.65,216.51,1.5833]
[1738628302846,20.0,216.64,216.51,1.5833]
[1738628303255,20.0,216.63,216.51,1.5833]
[1738628303455,20.0,216.63,216.52,4.6185]
[1738628303669,24.6162,216.63,216.52,4.6185]
[1738628303874,35.92614128,216.62,216.51,1.5833]
[1738628304075,22.51429275,216.6,216.51,1.5833]
[1738628304372,20.0,216.53,216.51,0.0001]
[1738628304679,13.41184853,216.52,216.51,0.0001]
[1738628304974,35.92614128,216.52,216.51,0.0001]
[1738628305658,40.54464128,216.52,216.51,0.0001]
[1738628307872,27.13279275,216.52,216.51,0.0001]
[1738628308046,0.063,216.6,216.51,0.0001]
[1738628308556,20.0,216.59,216.51,0.0001]
[1738628309079,20.063,216.6,216.51,0.0001]
[1738628309980,24.6798,216.6,216.51,4.6188]
[1738628310478,20.0,216.58,216.51,0.0001]
[1738628310678,22.51429275,216.57,216.51,0.0001]
[1738628311067,13.41184853,216.56,216.51,0.0001]
[1738628311668,20.0,216.53,216.51,0.0001]
[1738628312351,24.6183,216.53,216.51,0.0001]
[1738628312564,20.0,216.52,216.51,0.0001]
[1738628312761,27.13189275,216.57,216.51,0.0001]
[1738628312968,0.063,216.6,216.51,0.0001]
[1738628314568,20.063,216.6,216.51,0.0001]
[1738628314752,0.063,216.6,216.53,6.1265]
[1738628316394,0.063,216.6,216.54,14.41184853]
[1738628316603,0.063,216.6,216.56,13.41184853]
[1738628316787,0.063,216.6,216.59,20.0]
[1738628316988,0.063,216.6,216.55,4.6178]
[1738628317693,0.063,216.6,216.54,4.618]
[1738628317994,0.063,216.6,216.53,6.1265]
[1738628318193,0.063,216.6,216.53,10.7447]
[1738628319297,20.063,216.6,216.52,1.5078]
[1738628320315,20.063,216.6,216.52,6.1262]
[1738628320824,0.063,216.6,216.52,6.1262]
[1738628321115,0.063,216.6,216.52,17.6724]
[1738628321899,0.063,216.6,216.53,13.41184853]
[1738628322375,0.063,216.6,216.53,14.41184853]
[1738628322793,0.063,216.6,216.56,20.0]
[1738628323173,0.063,216.6,216.57,4.6174]
[1738628323399,0.063,216.6,216.53,4.6182]
[1738628324498,0.063,216.6,216.53,16.1639]
[1738628324707,0.063,216.6,216.52,83.3078]
[1738628324882,22.51429275,216.57,216.51,0.0001]
[1738628325193,13.41184853,216.56,216.51,0.0001]
[1738628325396,22.51429275,216.55,216.51,0.0001]
[1738628325981,17.17184853,216.58,216.51,4.6186]
[1738628326273,3.76,216.58,216.51,0.0001]
[1738628327497,20.0,216.56,216.51,0.0001]
[1738628327800,3.76,216.58,216.51,0.0001]
[1738628327982,0.063,216.6,216.52,20.0]
[1738628328606,0.063,216.58,216.53,16.1639]
[1738628329273,0.063,216.58,216.54,6.0986]
[1738628329692,0.063,216.6,216.55,14.10433901]
[1738628329905,0.063,216.68,216.56,2.5054]
[1738628330488,0.063,216.68,216.57,16.161]
[1738628330813,20.063,216.68,216.57,16.161]
[1738628331017,0.063,216.68,216.57,16.161]
[1738628331222,0.063,216.68,216.6,20.0]
[1738628332589,0.063,216.68,216.61,16.1579]
[1738628334091,0.063,216.68,216.61,4.6165]
[1738628334559,20.063,216.68,216.57,11.5433]
[1738628334694,0.063,216.68,216.59,4.6168]
[1738628335708,0.063,216.68,216.57,4.6174]
[1738628336416,22.51429275,216.67,216.57,4.6174]
[1738628336816,20.0,216.65,216.57,4.6174]
[1738628337426,0.063,216.68,216.57,16.161]
[1738628339111,20.063,216.68,216.58,3.41518484]
[1738628339442,22.51429275,216.67,216.58,3.41518484]
[1738628339819,0.063,216.68,216.59,4.617]
[1738628340332,20.063,216.68,216.59,16.1595]
[1738628340643,22.51429275,216.67,216.56,1.5054]
[1738628340850,22.51429275,216.67,216.57,4.6174]
[1738628341462,0.063,216.68,216.55,4.6176]
[1738628341463,20.0,216.63,216.55,4.6176]
[1738628341625,42.51429275,216.63,216.55,4.6176]
[1738628342067,22.51429275,216.57,216.51,0.0001]
[1738628342226,22.51429275,216.55,216.51,0.0001]
[1738628343625,22.51429275,216.53,216.51,0.0001]
[1738628343826,4.6185,216.52,216.51,0.0001]
[1738628344119,20.0,216.52,216.51,0.0001]
[1738628344321,1.5451,216.62,216.51,0.0001]
[1738628344548,3.76,216.63,216.51,0.0001]
[1738628345058,20.0,216.61,216.51,0.0001]
[1738628345428,8.3762,216.63,216.51,0.0001]
[1738628345629,3.76,216.63,216.51,0.0001]
[1738628346340,30.89039275,216.63,216.51,0.0001]
[1738628346944,13.41184853,216.62,216.51,0.0001]
[1738628347136,13.41184853,216.59,216.51,0.0001]
[1738628347342,22.51429275,216.55,216.51,0.0001]
[1738628347546,13.41184853,216.52,216.51,0.0001]
[1738628348535,22.51429275,216.61,216.51,0.0001]
[1738628348749,4.6165,216.62,216.51,0.0001]
[1738628348927,20.0,216.58,216.51,0.0001]
[1738628349328,22.51429275,216.66,216.51,1.0001]
[1738628349533,22.51429275,216.66,216.51,0.0001]
[1738628349759,20.0,216.63,216.51,0.0001]
[1738628350146,18.02754853,216.65,216.51,0.0001]
[1738628350333,22.51429275,216.64,216.51,0.0001]
[1738628350856,22.51429275,216.62,216.51,0.0001]
[1738628351028,13.41184853,216.61,216.51,0.0001]
[1738628351234,20.0,216.55,216.51,0.0001]
[1738628352557,22.51429275,216.62,216.51,0.0001]
[1738628352756,22.51429275,216.64,216.51,0.0001]
[1738628352968,4.6159,216.65,216.51,0.0001]
[1738628353136,13.41184853,216.63,216.51,0.0001]
[1738628353674,20.0,216.58,216.51,0.0001]
[1738628355361,22.51429275,216.64,216.51,0.0001]
[1738628355560,0.063,216.68,216.52,6.1831]
[1738628355561,22.57729275,216.68,216.52,6.1831]
[1738628355857,22.57729275,216.68,216.53,1.621]
[1738628355858,4.6786,216.66,216.53,1.621]
[1738628356061,13.41184853,216.65,216.53,1.621]
[1738628356448,20.0,216.62,216.53,1.621]
[1738628356957,0.063,216.66,216.56,21.0]
[1738628357302,0.063,216.66,216.56,21.69233245]
[1738628357576,0.063,216.66,216.57,16.161]
[1738628358070,0.063,216.66,216.57,4.6174]
[1738628358360,0.063,216.66,216.58,15.10426804]
[1738628358563,0.063,216.66,216.58,0.69241951]
[1738628358860,0.063,216.66,216.58,1.0]
[1738628359036,0.063,216.66,216.58,14.41184853]
[1738628359557,0.063,216.66,216.59,16.1595]
[1738628360058,0.063,216.66,216.59,4.617]
[1738628360640,0.063,216.66,216.6,3.42708957]
[1738628361138,0.063,216.66,216.61,13.41184853]
[1738628361558,0.063,216.66,216.62,4.6163]
[1738628362140,0.063,216.66,216.63,3.42708957]
[1738628363464,0.063,216.66,216.6,4.6167]
[1738628363465,0.063,216.66,216.55,11.5442]
[1738628363647,0.063,216.66,216.55,16.162]
[1738628364071,0.063,216.66,216.56,0.03]
[1738628364256,20.0,216.64,216.56,0.03]
[1738628365147,4.616,216.64,216.56,0.03]
[1738628365549,20.0,216.62,216.56,0.03]
[1738628366163,20.0,216.64,216.56,0.03]
[1738628368567,4.6159,216.64,216.56,0.03]
[1738628368791,20.0,216.6,216.56,0.03]
[1738628369079,20.0,216.58,216.56,0.03]
[1738628369691,13.41184853,216.51,216.44,0.03]
[1738628369866,20.0,216.45,216.44,0.03]
[1738628370273,3.76,216.5,216.44,0.03]
[1738628370674,3.76,216.56,216.44,0.03]
[1738628370879,13.41184853,216.51,216.44,0.03]
[1738628371495,22.51429275,216.49,216.44,0.03]
[1738628371648,22.51429275,216.47,216.44,0.03]
[1738628371844,20.0,216.45,216.44,0.03]
[1738628373769,18.03134853,216.48,216.44,0.03]
[1738628374162,20.0,216.45,216.44,0.03]
[1738628377558,55.92614128,216.45,216.44,0.03]
[1738628378358,42.51429275,216.45,216.44,0.03]
[1738628378557,55.92614128,216.45,216.44,0.03]
[1738628378969,42.51429275,216.45,216.44,0.03]
[1738628379165,4.6199,216.46,216.44,0.03]
[1738628379372,20.0,216.45,216.44,0.03]
[1738628379681,55.92614128,216.45,216.44,0.03]
[1738628380178,42.51429275,216.45,216.44,0.03]
[1738628380394,55.92614128,216.45,216.44,0.03]
[1738628380583,24.62,216.45,216.44,0.03]
[1738628381077,27.13389275,216.47,216.44,0.03]
[1738628381279,34.06029275,216.53,216.44,0.03]
[1738628381482,22.51429275,216.51,216.44,0.03]
[1738628381659,22.51429275,216.55,216.44,0.03]
[1738628381861,8.3776,216.56,216.44,0.03]
[1738628382281,3.76,216.56,216.44,4.6502]
[1738628382460,3.76,216.56,216.45,20.0]
[1738628382655,3.76,216.56,216.47,20.0]
[1738628383184,3.76,216.56,216.45,20.0]
[1738628383389,22.51429275,216.59,216.47,20.0]
[1738628383565,7.11346197,216.6,216.47,20.0]
[1738628383888,7.11346197,216.6,216.47,21.0]
[1738628384186,7.11346197,216.6,216.47,20.0]
[1738628384500,11.73026197,216.6,216.48,4.6193]
[1738628384656,22.51429275,216.57,216.48,4.6193]
[1738628384856,13.41184853,216.52,216.44,0.03]
[1738628385156,22.51429275,216.51,216.44,0.03]
[1738628386060,13.41184853,216.52,216.44,0.03]
[1738628387162,18.03034853,216.52,216.44,0.03]
[1738628387659,35.92614128,216.45,216.44,0.03]
[1738628389191,22.51429275,216.49,216.44,0.03]
[1738628389377,27.13349275,216.49,216.44,0.03]
[1738628389577,22.51429275,216.47,216.44,0.03]
[1738628389891,22.51429275,216.45,216.44,0.03]
[1738628390777,35.92614128,216.45,216.44,0.03]
[1738628390981,40.54614128,216.45,216.44,0.03]
[1738628391193,27.13399275,216.47,216.44,0.03]
[1738628392093,22.51429275,216.47,216.44,0.03]
[1738628392291,3.76,216.51,216.44,0.03]
[1738628392292,30.89319275,216.51,216.44,0.03]
[1738628392683,13.41184853,216.5,216.44,0.03]
[1738628393978,18.03094853,216.5,216.44,0.03]
[1738628394583,3.76,216.51,216.44,0.03]
[1738628394783,4.6182,216.54,216.44,1.6054]
[1738628394994,13.41184853,216.53,216.44,1.6054]
[1738628395375,22.51429275,216.51,216.44,0.03]
[1738628396290,4.6189,216.5,216.44,0.03]
[1738628396796,4.6185,216.52,216.44,0.03]
[1738628396998,42.51429275,216.55,216.44,0.03]
[1738628398808,22.51429275,216.53,216.44,0.03]
[1738628399100,42.51429275,216.51,216.44,0.03]
[1738628399618,22.51429275,216.47,216.44,0.03]
[1738628400421,22.51429275,216.53,216.44,0.03]
[1738628400581,22.51429275,216.51,216.44,0.03]
[1738628400913,22.51429275,216.49,216.44,0.03]
[1738628401421,22.51429275,216.47,216.44,0.03]
[1738628402614,22.51429275,216.54,216.44,0.03]
[1738628402837,4.6178,216.55,216.44,0.03]
[1738628403190,22.51429275,216.54,216.44,0.03]
[1738628403893,42.51429275,216.54,216.44,0.03]
[1738628404098,4.6182,216.53,216.44,0.03]
[1738628404325,42.51429275,216.54,216.44,0.03]
[1738628404817,22.51429275,216.57,216.44,20.03]
[1738628404994,22.51429275,216.57,216.45,1.6209]
[1738628405610,22.57729275,216.59,216.49,20.0]
[1738628406018,0.063,216.59,216.5,24.6189]
[1738628406649,0.063,216.59,216.5,4.6189]
[1738628407227,4.68,216.59,216.5,4.6189]
[1738628407424,0.063,216.59,216.5,4.6189]
[1738628407844,0.063,216.59,216.51,13.41184853]
[1738628408037,0.063,216.59,216.52,4.6185]
[1738628408234,0.063,216.59,216.53,13.41184853]
[1738628408437,0.063,216.59,216.57,1.5196]
[1738628408656,0.063,216.59,216.58,19.80674853]
[1738628408826,0.063,216.59,216.58,6.3949]
[1738628409158,0.063,216.59,216.57,1.5196]
[1738628409455,0.063,216.59,216.52,12.533]
[1738628409757,0.063,216.59,216.55,20.0]
[1738628410125,0.063,216.59,216.56,4.6176]
[1738628410328,0.063,216.59,216.57,20.0]
[1738628410769,0.063,216.59,216.58,20.0]
[1738628411120,0.063,216.59,216.56,4.6176]
[1738628411323,0.063,216.59,216.54,4.6178]
[1738628411635,0.063,216.59,216.55,20.0]
[1738628412264,0.063,216.59,216.56,4.6176]
[1738628412756,0.063,216.59,216.58,20.0]
[1738628413460,0.063,216.59,216.58,33.41184853]
[1738628413761,0.063,216.66,216.63,8.228]
[1738628414460,0.063,216.66,216.63,12.844]
[1738628414663,0.063,216.66,216.63,94.644]
[1738628415147,0.063,216.73,216.66,13.41184853]
[1738628415323,0.063,216.73,216.69,20.0]
[1738628415847,0.063,216.73,216.72,20.0]
[1738628416068,0.063,216.75,216.72,20.0]
[1738628416069,0.063,216.75,216.72,34.10376058]
[1738628416365,0.063,216.77,216.76,20.0]
[1738628416572,0.063,216.77,216.75,14.10360072]
[1738628416871,0.063,216.77,216.76,20.0]
[1738628418450,0.063,216.77,216.76,24.6133]
[1738628418648,0.063,216.77,216.76,38.02514853]
[1738628420268,0.063,216.77,216.76,24.6133]
[1738628420451,0.063,216.77,216.74,4.6138]
[1738628420973,0.063,216.77,216.73,1.5211]
[1738628421178,0.063,216.77,216.71,4.6144]
[1738628421870,0.063,216.77,216.73,20.0]
[1738628422571,0.063,216.77,216.72,4.6142]
[1738628422777,0.063,216.77,216.7,81.8]
[1738628423777,0.063,216.77,216.7,86.4144]
[1738628424553,0.063,216.77,216.7,81.8]
[1738628424754,22.57729275,216.77,216.66,4.6155]
[1738628424956,22.51429275,216.73,216.64,86.4157]
[1738628425277,22.51429275,216.73,216.61,4.6165]
[1738628425859,22.51429275,216.73,216.62,13.41184853]
[1738628426058,22.51429275,216.73,216.61,16.1579]
[1738628426578,22.51429275,216.73,216.61,4.6165]
[1738628426754,27.12839275,216.73,216.61,4.6165]
[1738628426956,22.51429275,216.69,216.59,1.5841]
[1738628427151,22.51429275,216.69,216.59,4.6169]
[1738628427353,22.51429275,216.71,216.59,4.6169]
[1738628427558,21.5007,216.72,216.6,13.41184853]
[1738628427770,22.51429275,216.73,216.6,13.41184853]
[1738628428562,27.12869275,216.71,216.59,16.1594]
[1738628428880,27.12869275,216.71,216.59,4.6169]
[1738628429379,22.51429275,216.71,216.59,4.6169]
[1738628429565,27.12879275,216.71,216.59,4.6169]
[1738628429960,22.51429275,216.75,216.6,13.41184853]
[1738628430165,22.51429275,216.71,216.59,4.6169]
[1738628430367,4.6133,216.76,216.57,86.4172]
[1738628430368,22.51429275,216.67,216.57,86.4172]
[1738628430764,27.12969275,216.67,216.57,86.4172]
[1738628430968,22.51429275,216.67,216.58,13.41184853]
[1738628431174,22.51429275,216.75,216.62,13.41184853]
[1738628431380,0.063,216.77,216.62,95.21184853]
[1738628431568,0.063,216.77,216.64,19.73334853]
[1738628432167,0.063,216.77,216.66,15.05984853]
[1738628432461,0.063,216.77,216.69,20.0]
[1738628432658,0.063,216.77,216.7,4.6146]
[1738628433768,0.063,216.77,216.68,4.6149]
[1738628433969,22.57729275,216.77,216.66,6.2933]
[1738628434985,27.19059275,216.77,216.66,6.2933]
[1738628435790,20.0,216.76,216.66,6.2933]
[1738628435993,0.063,216.77,216.66,6.2933]
[1738628436493,27.19049275,216.77,216.66,6.2933]
[1738628438301,22.51429275,216.75,216.66,0.03]
[1738628438591,22.51429275,216.73,216.66,0.03]
[1738628438789,22.51429275,216.73,216.66,4.6454]
[1738628438991,27.19049275,216.77,216.66,4.6454]
[1738628439163,22.57729275,216.77,216.66,4.6454]
[1738628439795,0.063,216.77,216.66,36.1842]
[1738628442307,0.063,216.77,216.67,13.41184853]
[1738628442787,0.063,216.77,216.71,13.41184853]
[1738628442991,0.063,216.77,216.68,6.0536]
[1738628443188,22.51429275,216.76,216.68,6.0536]
[1738628443387,22.51429275,216.76,216.67,81.8]
[1738628443690,22.51429275,216.72,216.66,0.03]
[1738628444083,22.51429275,216.74,216.66,0.03]
[1738628444288,0.063,216.77,216.66,0.03]
[1738628444479,0.063,216.77,216.68,13.41184853]
[1738628444679,0.063,216.77,216.71,20.0]
[1738628444895,0.063,216.77,216.72,20.0]
[1738628445309,0.063,216.77,216.73,13.41184853]
[1738628445487,0.063,216.8,216.76,34.41184853]
[1738628445676,0.063,216.81,216.8,33.41184853]
[1738628445983,0.063,216.81,216.8,20.0]
[1738628446494,0.063,216.81,216.78,4.6129]
[1738628447106,0.063,216.81,216.76,86.4132]
[1738628448198,0.063,216.81,216.76,4.6132]
[1738628448890,0.063,216.81,216.74,10.6672]
[1738628449193,0.063,216.81,216.71,1.5394]
[1738628449394,0.063,216.81,216.68,10.9618]
[1738628449395,22.51429275,216.8,216.68,10.9618]
[1738628449908,0.063,216.81,216.69,14.10385299]
[1738628450209,0.063,216.81,216.74,20.0]
[1738628450505,0.063,216.81,216.75,4.6136]
[1738628452116,0.063,216.81,216.75,36.1476]
[1738628452406,0.063,216.88,216.83,20.0]
[1738628452596,0.063,216.88,216.84,20.6915759]
[1738628452803,0.063,216.88,216.85,13.41184853]
[1738628453305,0.063,216.88,216.87,13.41184853]
[1738628454202,0.063,216.88,216.85,24.6114]
[1738628454611,0.063,216.88,216.81,4.6123]
[1738628456186,22.57729275,216.88,216.8,81.8]
[1738628456509,22.57729275,216.88,216.77,4.613]
[1738628457490,0.063,216.88,216.8,20.0]
[1738628457694,0.063,216.88,216.81,14.10342401]
[1738628458101,0.063,216.88,216.8,20.0]
[1738628458285,0.063,216.88,216.81,4.6123]
[1738628459019,0.063,216.88,216.8,20.0]
[1738628459519,0.063,216.88,216.8,24.6124]
[1738628460703,0.063,216.88,216.81,13.41184853]
[1738628461694,0.063,216.88,216.8,24.6124]
[1738628462398,0.063,216.88,216.8,86.4124]
[1738628463014,0.063,216.88,216.81,13.41184853]
[1738628463533,0.063,216.88,216.85,13.41184853]
[1738628463696,0.063,216.88,216.87,33.41184853]
[1738628463898,0.063,216.95,216.91,20.0]
[1738628464200,1.6416,217.08,216.98,20.0]
[1738628464404,22.57729275,217.1,216.94,12.21444609]
[1738628464602,22.51429275,217.06,216.92,4.6099]
[1738628464803,22.51429275,217.02,216.88,4.6108]
[1738628465193,22.51429275,217.02,216.9,20.0]
[1738628465619,22.51429275,217.0,216.88,4.6108]
[1738628465920,22.51429275,216.97,216.85,4.6114]
[1738628466126,22.51429275,216.97,216.85,24.6114]
[1738628466422,22.51429275,216.97,216.84,13.41184853]
[1738628466603,22.51429275,216.95,216.83,4.6119]
[1738628467213,0.063,216.97,216.87,20.0]
[1738628467524,0.063,216.97,216.88,13.41184853]
[1738628467819,0.063,216.97,216.89,0.69135035]
[1738628467998,0.063,216.97,216.88,1.69133744]
[1738628468629,0.063,216.97,216.9,33.41184853]
[1738628468803,0.063,216.97,216.93,13.41184853]
[1738628470330,0.063,216.97,216.93,20.0]
[1738628470937,0.063,216.97,216.93,24.6095]
[1738628472325,0.063,216.97,216.91,4.61]
[1738628473128,0.063,216.97,216.92,13.41184853]
[1738628473442,0.063,216.97,216.91,4.61]
[1738628473930,0.063,216.97,216.91,5.30137664]
[1738628474103,0.063,216.97,216.92,13.41184853]
[1738628474302,0.063,216.97,216.93,0.69122429]
[1738628474522,0.063,216.97,216.93,20.69122429]
[1738628474906,0.063,216.97,216.93,0.69122429]
[1738628475099,0.063,216.97,216.94,18.02134853]
[1738628475323,0.063,216.97,216.96,20.0]
[1738628476823,0.063,216.97,216.96,24.6091]
[1738628477924,0.063,216.97,216.96,4.6091]
[1738628480450,0.063,217.03,216.98,20.0]
[1738628481145,0.063,217.03,216.98,33.41184853]
[1738628482028,0.063,217.03,216.98,20.0]
[1738628482540,0.063,217.03,216.98,38.02054853]
[1738628483647,0.063,217.03,216.98,24.6087]
[1738628483822,0.063,217.03,216.98,4.6087]
[1738628484238,0.063,217.03,216.96,4.609]
[1738628484434,0.063,217.03,216.95,81.8]
[1738628484435,6.6786,217.03,216.92,4.6099]
[1738628484783,6.6786,217.03,216.83,24.0595]
[1738628484784,1.5638,216.99,216.84,4.6116]
[1738628485047,22.51429275,216.98,216.84,4.6116]
[1738628485363,22.51429275,216.94,216.84,4.6116]
[1738628485522,6.2465,216.91,216.78,11.5321]
[1738628485723,4.6104,216.9,216.77,4.6131]
[1738628485963,10.8567,216.91,216.79,20.0]
[1738628486755,10.8567,216.91,216.78,13.41184853]
[1738628486960,10.8567,216.91,216.77,4.6131]
[1738628487480,10.8567,216.91,216.8,13.44184853]
[1738628487481,6.2465,216.91,216.8,13.44184853]
[1738628487648,6.2465,216.91,216.8,0.03]
[1738628487966,22.51429275,216.89,216.8,0.03]
[1738628488170,22.51429275,216.85,216.8,0.03]
[1738628488347,22.51429275,216.83,216.8,0.03]
[1738628488556,22.51429275,216.81,216.8,0.03]
[1738628488762,28.80639275,216.81,216.8,0.03]
[1738628489067,6.2921,216.81,216.8,0.03]
[1738628489275,5.3775,216.88,216.8,0.03]
[1738628489448,16.2806,216.88,216.8,0.03]
[1738628489765,11.6696,216.88,216.8,0.03]
[1738628490274,6.2921,216.88,216.8,0.03]
[1738628490487,6.2921,216.88,216.8,13.44184853]
[1738628490655,6.2921,216.93,216.8,13.44184853]
[1738628490857,28.80639275,216.93,216.81,20.0]
[1738628491291,13.41184853,216.92,216.8,0.03]
[1738628491481,28.80639275,216.93,216.8,0.03]
[1738628491668,28.80639275,216.93,216.8,13.44184853]
[1738628491669,6.2921,216.93,216.8,13.44184853]
[1738628492318,6.2921,216.93,216.83,20.0]
[1738628492496,0.063,216.97,216.83,0.69154653]
[1738628492670,22.57729275,216.97,216.83,20.0]
[1738628493006,22.57729275,216.97,216.84,20.0]
[1738628493601,22.57729275,216.97,216.89,20.0]
[1738628493602,0.063,216.97,216.89,20.0]
[1738628493901,0.063,216.97,216.86,0.69137058]
[1738628494106,0.063,216.97,216.85,16.1401]
[1738628494307,22.57729275,216.97,216.85,4.6114]
[1738628494601,27.18629275,216.97,216.85,4.6114]
[1738628494981,27.18629275,216.97,216.85,24.6114]
[1738628495793,22.51429275,216.95,216.85,20.0]
[1738628495995,22.51429275,216.93,216.85,20.0]
[1738628496220,22.51429275,216.91,216.8,0.03]
[1738628496535,22.51429275,216.89,216.8,4.6424]
[1738628496707,22.51429275,216.87,216.8,0.03]
[1738628497348,22.51429275,216.85,216.8,0.03]
[1738628497709,22.51429275,216.83,216.8,0.03]
[1738628497916,4.6121,216.82,216.8,0.03]
[1738628498228,22.51429275,216.81,216.8,0.03]
[1738628498435,35.92614128,216.81,216.8,0.03]
[1738628498638,22.51429275,216.77,216.76,0.03]
[1738628499711,35.92614128,216.77,216.76,0.03]
[1738628499933,40.53924128,216.77,216.76,0.03]
[1738628501518,41.53924128,216.77,216.76,0.03]
[1738628501722,47.88364128,216.77,216.76,0.03]
[1738628501922,51.62364128,216.77,216.76,0.03]
[1738628502111,50.62364128,216.77,216.76,0.03]
[1738628502330,50.62364128,216.77,216.73,0.03]
[1738628502542,56.92614128,216.74,216.66,0.03]
[1738628502842,22.51429275,216.68,216.66,0.03]